fUST/lending_fUST_20250615
["ID","MTS","AMOUNT","RATE_DAILY","PERIOD"]
[365811410,1749930645714,-2415.44,0.00023561,4]
[365811411,1749930645724,-1391.0,0.00023561,4]
[365811412,1749930645734,-1957.05,0.00023561,4]
[365811413,1749930645744,-3058.74,0.00023561,4]
[365811414,1749930645757,-1921.61,0.00023561,4]
[365811415,1749930645767,-460.0,0.00023561,4]
[365811416,1749930645777,-460.0,0.00023561,4]
[365811417,1749930645787,-460.0,0.00023561,4]
[365811418,1749930645797,-1098.89,0.00023561,4]
[365811419,1749930645807,-771.13,0.00023561,4]
[365811420,1749930645817,-1871.86,0.00023561,4]
[365811421,1749930645826,-460.0,0.00023561,4]
[365811422,1749930645839,-195.0,0.00023563,2]
[365811423,1749930645849,-500.0,0.00023573,2]
[365811425,1749930645859,-500.0,0.00023573,2]
[365811426,1749930645869,-500.0,0.00023573,2]
[365811427,1749930645880,-500.0,0.00023573,2]
[365811428,1749930645890,-500.0,0.00023573,2]
[365811429,1749930645900,-500.0,0.00023573,2]
[365811431,1749930645909,-200.0,0.00023599,2]
[365811432,1749930645919,-151.0,0.000236,6]
[365811433,1749930645929,-67705.15958155,0.000236,2]
[365811434,1749930645938,-446.82,0.000236,7]
[365811435,1749930645948,-54617.92,0.000236,2]
[365811436,1749930645958,-151.0,0.000236,7]
[365811437,1749930645967,-151.0,0.000236,7]
[365811438,1749930645977,-151.0,0.000236,7]
[365811439,1749930645987,-151.0,0.000236,7]
[365811440,1749930645998,-513.031895,0.000236,7]
[365811441,1749930646008,-513.031895,0.000236,7]
[365811443,1749930646018,-151.0,0.000236,7]
[365811444,1749930646027,-151.0,0.000236,7]
[365811445,1749930646040,-151.0,0.000236,7]
[365811446,1749930646054,-151.0,0.000236,7]
[365811448,1749930646069,-151.0,0.000236,7]
[365811450,1749930646084,-180.749662,0.000236,7]
[365811451,1749930646096,-212.926638,0.000236,7]
[365811452,1749930646109,-151.0,0.000236,7]
[365811454,1749930646123,-212.926638,0.000236,7]
[365811455,1749930646137,-800.0,0.00023607,2]
[365811456,1749930646151,-324.0,0.00023622,2]
[365811457,1749930646164,-317.0,0.00023638,3]
[365811458,1749930646177,-151.0,0.00023644,7]
[365811459,1749930646191,-151.0,0.00023644,7]
[365811460,1749930646205,-151.0,0.00023644,7]
[365811461,1749930646218,-861.19,0.00023644,3]
[365811462,1749930646232,-667.45443944,0.00023659,9]
[365811463,1749930646243,-298.461047,0.00023687,7]
[365811464,1749930646256,-151.0,0.00023687,7]
[365811465,1749930646270,-15420.06216792,0.00023687,2]
[365811466,1749930646283,-151.0,0.00023687,7]
[365811467,1749930646297,-151.0,0.00023687,7]
[365811468,1749930646308,-639.0,0.000237,2]
[365811469,1749930646320,-964.0,0.00023714,2]
[365811470,1749930646333,-653.0,0.00023714,2]
[365811471,1749930646348,-2160.0,0.00023714,2]
[365811472,1749930646361,-405.0,0.00023714,2]
[365811473,1749930646376,-405.0,0.00023714,2]
[365811474,1749930646389,-501.91821307,0.00023724,9]
[365811475,1749930646402,-800.0,0.00023732,2]
[365811476,1749930646416,-500.0,0.00023733,9]
[365811477,1749930646430,-861.19,0.00023744,7]
[365811478,1749930646441,-215.0738,0.00023747,2]
[365811479,1749930646451,-183.512585,0.0002376,7]
[365811480,1749930646462,-151.0,0.0002376,7]
[365811481,1749930646473,-179.140896,0.0002376,7]
[365811482,1749930646487,-179.140896,0.0002376,7]
[365811483,1749930646501,-667.45443944,0.00023762,9]
[365811484,1749930646512,-500.0,0.00023773,2]
[365811485,1749930646523,-500.0,0.00023773,2]
[365811486,1749930646535,-500.0,0.00023773,2]
[365811487,1749930646547,-500.0,0.00023773,2]
[365811488,1749930646559,-420.33161541,0.00023773,2]
[365811489,1749930646569,-500.0,0.00023773,2]
[365811490,1749930646581,-500.0,0.00023773,2]
[365811491,1749930646592,-508.50078384,0.00023773,2]
[365811492,1749930646603,-500.0,0.00023773,2]
[365811493,1749930646615,-500.0,0.00023773,2]
[365811494,1749930646626,-500.0,0.00023773,2]
[365811495,1749930646637,-500.0,0.00023773,2]
[365811496,1749930646648,-154.41659663,0.00023773,2]
[365811497,1749930646660,-500.0,0.00023773,2]
[365811498,1749930646672,-500.0,0.00023773,2]
[365811499,1749930646683,-500.0,0.00023773,2]
[365811500,1749930646694,-600.0,0.00023773,2]
[365811501,1749930646705,-339.85486214,0.00023773,2]
[365811502,1749930646717,-500.0,0.00023773,2]
[365811503,1749930646729,-200.97384328,0.00023779,2]
[365811504,1749930646740,-2688.34171766,0.0002378,2]
[365811505,1749930646754,-5779.94727193,0.0002378,2]
[365811506,1749930646765,-217320.16616434,0.0002378,5]
[365811507,1749930646777,-23206.39996401,0.0002378,5]
[365811508,1749930646788,-3000.0,0.0002378,2]
[365811509,1749930646800,-151.0,0.0002378,7]
[365811510,1749930646811,-151.0,0.0002378,7]
[365811511,1749930646822,-151.0,0.0002378,7]
[365811512,1749930646835,-153.379468,0.0002378,7]
[365811513,1749930646846,-298.461047,0.0002378,7]
[365811514,1749930646858,-151.0,0.0002378,7]
[365811515,1749930646870,-151.0,0.0002378,7]
[365811516,1749930646881,-151.42789,0.0002378,7]
[365811517,1749930646894,-151.0,0.0002378,7]
[365811518,1749930646906,-151.0,0.0002378,7]
[365811519,1749930646917,-185.0,0.0002378,7]
[365811520,1749930646928,-185.0,0.0002378,7]
[365811521,1749930646939,-151.0,0.0002378,7]
[365811522,1749930646951,-151.0,0.0002378,7]
[365811523,1749930646962,-151.0,0.0002378,7]
[365811524,1749930646973,-151.0,0.0002378,7]
[365811525,1749930646984,-151.0,0.0002378,7]
[365811526,1749930646995,-179.140896,0.0002378,7]
[365811527,1749930647006,-179.140896,0.0002378,7]
[365811528,1749930647017,-500.0,0.0002378,2]
[365811529,1749930647028,-500.0,0.0002378,2]
[365811530,1749930647041,-500.0,0.0002378,2]
[365811531,1749930647051,-500.0,0.0002378,2]
[365811532,1749930647060,-500.0,0.0002378,2]
[365811533,1749930647069,-500.0,0.0002378,2]
[365811534,1749930647079,-500.0,0.0002378,2]
[365811535,1749930647089,-500.0,0.0002378,2]
[365811536,1749930647099,-266.0,0.0002378,2]
[365811537,1749930647110,-204.689781,0.0002378,7]
[365811538,1749930647120,-204.689781,0.0002378,7]
[365811539,1749930647130,-151.0,0.0002378,7]
[365811540,1749930647141,-288.257421,0.0002378,7]
[365811541,1749930647152,-151.0,0.0002378,7]
[365811542,1749930647161,-222.224892,0.0002378,7]
[365811543,1749930647171,-151.0,0.0002378,7]
[365811544,1749930647181,-293.272622,0.0002378,7]
[365811545,1749930647191,-151.0,0.0002378,7]
[365811546,1749930647201,-151.0,0.0002378,7]
[365811547,1749930647210,-262.352041,0.0002378,7]
[365811548,1749930647220,-151.0,0.0002378,7]
[365811549,1749930647230,-151.0,0.0002378,7]
[365811550,1749930647241,-513.031895,0.0002378,7]
[365811551,1749930647252,-513.031895,0.0002378,7]
[365811552,1749930647263,-151.0,0.0002378,7]
[365811553,1749930647276,-152.175404,0.0002378,7]
[365811554,1749930647288,-151.0,0.0002378,7]
[365811555,1749930647298,-151.0,0.0002378,7]
[365811556,1749930647309,-156.315351,0.0002378,7]
[365811557,1749930647320,-212.926638,0.0002378,7]
[365811558,1749930647330,-151.0,0.0002378,7]
[365811559,1749930647340,-212.926638,0.0002378,7]
[365811560,1749930647350,-102968.31212813,0.00023788,2]
[365811561,1749930647360,-3000.0,0.0002379,2]
[365811562,1749930647369,-151.0,0.00023799,7]
[365811563,1749930647379,-151.0,0.00023799,7]
[365811564,1749930647388,-32589.21408476,0.000238,2]
[365811565,1749930647397,-3000.0,0.000238,2]
[365811566,1749930647408,-151.0,0.000238,7]
[365811567,1749930647418,-151.0,0.000238,7]
[365811568,1749930647631,-298.461047,0.000238,7]
[365811569,1749930647649,-151.0,0.000238,7]
[365811570,1749930647661,-151.0,0.000238,7]
[365811571,1749930647671,-185.0,0.000238,7]
[365811572,1749930647681,-185.0,0.000238,7]
[365811573,1749930647691,-151.0,0.000238,7]
[365811574,1749930647701,-151.0,0.000238,7]
[365811575,1749930647711,-151.0,0.000238,7]
[365811576,1749930647721,-151.0,0.000238,7]
[365811577,1749930647731,-2614.41,0.000238,2]
[365811578,1749930647744,-179.140896,0.000238,7]
[365811579,1749930647755,-179.140896,0.000238,7]
[365811580,1749930647766,-204.689781,0.000238,7]
[365811581,1749930647776,-204.689781,0.000238,7]
[365811582,1749930647785,-151.0,0.000238,7]
[365811583,1749930647795,-151.0,0.000238,7]
[365811584,1749930647806,-889.870413,0.000238,7]
[365811585,1749930647816,-889.870413,0.000238,7]
[365811586,1749930647826,-151.0,0.000238,7]
[365811587,1749930647837,-151.0,0.000238,7]
[365811588,1749930647848,-151.0,0.000238,7]
[365811589,1749930647858,-151.0,0.000238,7]
[365811590,1749930647868,-151.0,0.000238,7]
[365811591,1749930647878,-668.8657,0.000238,2]
[365811592,1749930647888,-513.031895,0.000238,7]
[365811593,1749930647898,-513.031895,0.000238,7]
[365811594,1749930647907,-151.0,0.000238,7]
[365811595,1749930647918,-151.0,0.000238,7]
[365811596,1749930647929,-151.0,0.000238,7]
[365811597,1749930647938,-5738.07650511,0.000238,2]
[365811598,1749930647949,-212.926638,0.000238,7]
[365811599,1749930647959,-151.0,0.000238,7]
[365811600,1749930647969,-212.926638,0.000238,7]
[365811601,1749930647979,-153.0,0.00023808,2]
[365811602,1749930647988,-3000.0,0.0002381,2]
[365811603,1749930647999,-2000.0,0.00023816,2]
[365811604,1749930648008,-3000.0,0.0002382,2]
[365811605,1749930648018,-3000.0,0.0002383,2]
[365811606,1749930648027,-151.0,0.00023835,7]
[365811607,1749930648039,-151.0,0.00023835,7]
[365811608,1749930648049,-555.48,0.00023835,4]
[365811609,1749930648059,-460.0,0.00023835,4]
[365811610,1749930648070,-460.0,0.00023835,4]
[365811611,1749930648080,-460.0,0.00023835,4]
[365811612,1749930648090,-150.0,0.00023835,4]
[365811613,1749930648100,-2048.85,0.00023835,4]
[365811614,1749930648110,-320.0,0.00023835,4]
[365811615,1749930648120,-460.0,0.00023835,4]
[365811616,1749930648130,-460.0,0.00023835,4]
[365811617,1749930648140,-280.0,0.00023835,4]
[365811618,1749930648151,-460.0,0.00023835,4]
[365811619,1749930648160,-3020.13,0.00023835,4]
[365811620,1749930648171,-460.0,0.00023835,4]
[365811621,1749930648181,-1483.61,0.00023835,4]
[365811622,1749930648191,-460.0,0.00023835,4]
[365811623,1749930648201,-513.93,0.00023835,4]
[365811624,1749930648211,-460.0,0.00023835,4]
[365811625,1749930648222,-878.55,0.00023835,4]
[365811626,1749930648232,-460.0,0.00023835,4]
[365811627,1749930648243,-460.0,0.00023835,4]
[365811628,1749930648253,-983.15,0.00023835,4]
[365811629,1749930648263,-1257.45,0.00023835,4]
[365811630,1749930648273,-460.0,0.00023835,4]
[365811631,1749930648284,-3194.87,0.00023835,4]
[365811632,1749930648294,-1287.0,0.00023835,4]
[365811633,1749930648304,-460.0,0.00023835,4]
[365811634,1749930648313,-843.8,0.00023835,4]
[365811635,1749930648322,-1399.33,0.00023835,4]
[365811636,1749930648331,-460.0,0.00023835,4]
[365811637,1749930648341,-1395.43,0.00023835,4]
[365811638,1749930648351,-616.65,0.00023835,4]
[365811639,1749930648361,-2664.63,0.00023835,4]
[365811640,1749930648371,-3433.59,0.00023835,4]
[365811641,1749930648382,-3459.67,0.00023835,4]
[365811642,1749930648392,-744.6,0.00023835,4]
[365811643,1749930648403,-568.48,0.00023835,4]
[365811644,1749930648413,-460.0,0.00023835,4]
[365811645,1749930648423,-3885.17,0.00023835,4]
[365811646,1749930648433,-3556.29,0.00023835,4]
[365811647,1749930648443,-1763.39,0.00023835,4]
[365811648,1749930648453,-685.68,0.00023835,2]
[365811649,1749930648463,-460.0,0.00023835,4]
[365811650,1749930648473,-685.9,0.00023835,4]
[365811651,1749930648483,-460.0,0.00023835,4]
[365811652,1749930648493,-460.0,0.00023835,4]
[365811653,1749930648504,-460.0,0.00023835,4]
[365811654,1749930648513,-460.0,0.00023835,4]
[365811655,1749930648523,-2415.44,0.00023835,4]
[365811656,1749930648533,-1391.0,0.00023835,4]
[365811657,1749930648543,-1957.05,0.00023835,4]
[365811658,1749930648552,-3058.74,0.00023835,4]
[365811659,1749930648562,-1921.61,0.00023835,4]
[365811660,1749930648572,-460.0,0.00023835,4]
[365811661,1749930648583,-460.0,0.00023835,4]
[365811662,1749930648593,-1098.89,0.00023835,4]
[365811663,1749930648603,-771.13,0.00023835,4]
[365811664,1749930648615,-1871.86,0.00023835,4]
[365811665,1749930648626,-460.0,0.00023835,4]
[365811666,1749930648636,-3000.0,0.0002384,2]
[365811667,1749930648646,-861.19,0.00023844,2]
[365811668,1749930648656,-3000.0,0.0002385,2]
[365811669,1749930648666,-150.0,0.0002386,2]
[365811670,1749930648676,-150.0,0.0002386,2]
[365811671,1749930648686,-150.0,0.0002386,2]
[365811672,1749930648695,-3000.0,0.0002386,2]
[365811673,1749930648706,-667.45443944,0.00023866,10]
[365811674,1749930648716,-3000.0,0.0002387,2]
[365811675,1749930648726,-151.0,0.0002387,7]
[365811676,1749930648737,-889.870413,0.00023873,7]
[365811677,1749930648747,-889.870413,0.00023873,7]
[365811678,1749930648761,-3000.0,0.0002388,2]
[365811679,1749930648771,-151.0,0.0002388,7]
[365811680,1749930648781,-151.0,0.0002388,7]
[365811681,1749930648791,-298.461047,0.0002388,7]
[365811682,1749930648803,-300.661725,0.0002388,7]
[365811683,1749930648813,-3000.0,0.0002389,2]
[365811684,1749930648825,-168.0,0.00023897,2]
[365811685,1749930648836,-57290.79725125,0.000239,7]
[365811686,1749930648846,-12727.72057936,0.000239,7]
[365811687,1749930648856,-6959.13420563,0.000239,7]
[365811688,1749930648867,-3000.0,0.000239,2]
[365811689,1749930648877,-185.0,0.000239,7]
[365811690,1749930648886,-185.0,0.000239,7]
[365811691,1749930648895,-151.0,0.000239,7]
[365811692,1749930648905,-151.0,0.000239,7]
[365811693,1749930648915,-151.0,0.000239,7]
[365811694,1749930648925,-151.0,0.000239,7]
[365811695,1749930648935,-179.140896,0.000239,7]
[365811696,1749930648944,-179.140896,0.000239,7]
[365811697,1749930648955,-204.689781,0.000239,7]
[365811698,1749930648965,-204.689781,0.000239,7]
[365811699,1749930648974,-151.0,0.000239,7]
[365811700,1749930648984,-151.0,0.000239,7]
[365811701,1749930648994,-151.0,0.000239,7]
[365811702,1749930649003,-153.254637,0.000239,7]
[365811703,1749930649013,-151.0,0.000239,7]
[365811704,1749930649023,-299.514736,0.000239,7]
[365811705,1749930649032,-513.031895,0.000239,7]
[365811706,1749930649041,-513.031895,0.000239,7]
[365811707,1749930649051,-151.0,0.000239,7]
[365811708,1749930649061,-212.926638,0.000239,7]
[365811709,1749930649070,-151.0,0.000239,7]
[365811710,1749930649080,-212.926638,0.000239,7]
[365811711,1749930649090,-3000.0,0.0002391,2]
[365811712,1749930649099,-3946.295596,0.0002392,2]
[365811713,1749930649109,-5738.07650509,0.00023921,2]
[365811714,1749930649118,-861.19,0.00023944,2]
[365811715,1749930649128,-667.45443944,0.00023969,10]
[365811716,1749930649137,-150.0,0.00023973,2]
[365811717,1749930649147,-200.0,0.00023979,2]
[365811718,1749930649156,-200.89142611,0.00023979,2]
[365811719,1749930649165,-33171.76059292,0.0002398,2]
[365811720,1749930649347,-310.71500004,0.00021917,4]
[365811727,1749930847235,244.464929,0.00013699,2]
[365811741,1749931592053,258.65045408,0.000189,2]
[365811743,1749931648124,-170.667429,0.00019653,2]
[365811744,1749931648145,-244.464929,0.00020187,2]
[365811745,1749931648168,-169.689085,0.00020243,2]
[365811746,1749931648190,-225.6793886,0.0002034,2]
[365811747,1749931648213,-169.689085,0.00020344,2]
[365811748,1749931648234,-666.0,0.00020363,2]
[365811749,1749931648255,-682.85772591,0.00020459,2]
[365811750,1749931648276,-300.0,0.00020732,2]
[365811751,1749931648297,-391.71865128,0.00020733,2]
[365811752,1749931648318,-300.0,0.00020733,2]
[365811753,1749931648338,-1200.0,0.00020733,2]
[365811754,1749931648358,-300.0,0.00020733,2]
[365811755,1749931648379,-5596.01349533,0.00020734,2]
[365811756,1749931649118,-1172.91004146,0.00020734,2]
[365811767,1749931832379,-184.62005228,0.00020112,2]
[365811768,1749931832389,-1318.4635305,0.0002064,2]
[365811769,1749931832398,-300.0,0.00020733,2]
[365811770,1749931832408,-300.0,0.00020733,2]
[365811771,1749931832419,-1200.0,0.00020733,2]
[365811772,1749931832428,-2951.74334096,0.00020734,2]
[365811773,1749931832529,-15179.33312225,0.00020734,2]
[365811774,1749931832539,-1967.28,0.00020806,2]
[365811775,1749931832550,-178.69101,0.00020807,2]
[365811776,1749931832560,-100000.0,0.0002099,2]
[365811777,1749931832569,-500.0,0.00021154,2]
[365811778,1749931832579,-175.272,0.00021154,2]
[365811779,1749931832588,-1323.7,0.0002123,2]
[365811780,1749931832598,-168.0,0.00021298,2]
[365811781,1749931832607,-168.0,0.00021377,2]
[365811782,1749931832617,-168.0,0.00021738,2]
[365811783,1749931832627,-168.0,0.00021776,2]
[365811784,1749931832636,-168.0,0.00021781,2]
[365811785,1749931832649,-485.10789204,0.00021817,2]
[365811786,1749931832658,-1351.75904657,0.000219,6]
[365811787,1749931832667,-4138.40716648,0.00021905,2]
[365811788,1749931832677,-187.74878751,0.00021914,2]
[365811789,1749931832687,-500.0,0.00021914,2]
[365811790,1749931832697,-285472.47037096,0.00021915,2]
[365811791,1749931832709,-20724.82531557,0.00021915,2]
[365811792,1749931832720,-6398.67979468,0.00021915,2]
[365812008,1749931838381,-177.23,0.00021905,10]
[365812009,1749931838391,-238.25266055,0.00021914,2]
[365812010,1749931838400,-500.0,0.00021914,2]
[365812011,1749931838411,-500.0,0.00021914,2]
[365812012,1749931838420,-500.0,0.00021914,2]
[365812013,1749931838430,-500.0,0.00021914,2]
[365812015,1749931838440,-500.0,0.00021914,2]
[365812016,1749931838450,-500.0,0.00021914,2]
[365812017,1749931838460,-500.0,0.00021914,2]
[365812018,1749931838468,-500.0,0.00021914,2]
[365812019,1749931838478,-500.0,0.00021914,2]
[365812020,1749931838487,-419.50446731,0.00021914,2]
[365812021,1749931838497,-100239.41291879,0.00021915,2]
[365812022,1749931838506,-1967.28,0.00021916,2]
[365812023,1749931838516,-1967.28,0.00021916,2]
[365812024,1749931838526,-1967.28,0.00021916,2]
[365812025,1749931838536,-1967.28,0.00021916,2]
[365812026,1749931838546,-1967.28,0.00021916,2]
[365812027,1749931838555,-1967.28,0.00021916,2]
[365812028,1749931838565,-1967.28,0.00021916,2]
[365812029,1749931838574,-1967.28,0.00021916,2]
[365812030,1749931838583,-1967.28,0.00021916,2]
[365812031,1749931838593,-1967.28,0.00021916,2]
[365812032,1749931838603,-500.0,0.00021916,2]
[365812033,1749931838612,-160.0,0.00021916,2]
[365812034,1749931838622,-500.0,0.00021917,4]
[365812035,1749931838631,-440.95080469,0.00021917,4]
[365812036,1749931838640,-460.0,0.00021917,4]
[365812037,1749931838649,-460.0,0.00021917,4]
[365812038,1749931838659,-513.94875728,0.00021917,4]
[365812039,1749931838667,-420.0,0.00021917,4]
[365812040,1749931838677,-430.0,0.00021917,4]
[365812041,1749931838686,-460.0,0.00021917,4]
[365812042,1749931838695,-400.0,0.00021917,4]
[365812043,1749931838704,-460.0,0.00021917,4]
[365812044,1749931838714,-378.99850081,0.00021917,4]
[365812045,1749931838723,-356.78911354,0.00021917,4]
[365812046,1749931838732,-460.0,0.00021917,4]
[365812047,1749931838741,-460.0,0.00021917,4]
[365812048,1749931838750,-460.0,0.00021917,4]
[365812049,1749931838760,-460.0,0.00021917,4]
[365812050,1749931838769,-296.35003313,0.00021917,4]
[365812051,1749931838779,-380.0,0.00021917,4]
[365812052,1749931838789,-372.58283825,0.00021917,4]
[365812053,1749931838799,-420.0,0.00021917,4]
[365812054,1749931838808,-460.0,0.00021917,4]
[365812055,1749931838817,-460.0,0.00021917,4]
[365812056,1749931838826,-460.0,0.00021917,4]
[365812057,1749931838835,-460.0,0.00021917,4]
[365812058,1749931838844,-390.0,0.00021917,4]
[365812059,1749931838853,-420.0,0.00021917,4]
[365812060,1749931838863,-460.0,0.00021917,4]
[365812061,1749931838872,-440.0,0.00021917,4]
[365812062,1749931838881,-420.0,0.00021917,4]
[365812063,1749931838890,-430.0,0.00021917,4]
[365812064,1749931838899,-420.0,0.00021917,4]
[365812065,1749931838909,-460.0,0.00021917,4]
[365812066,1749931838918,-440.0,0.00021917,4]
[365812067,1749931838928,-460.0,0.00021917,4]
[365812068,1749931838937,-404.18593435,0.00021917,4]
[365812069,1749931838946,-479.38,0.00021917,4]
[365812070,1749931838956,-400.0,0.00021917,4]
[365812071,1749931838965,-460.0,0.00021917,4]
[365812072,1749931838975,-460.0,0.00021917,4]
[365812073,1749931838985,-460.91737686,0.00021917,4]
[365812074,1749931838994,-420.0,0.00021917,4]
[365812075,1749931839003,-460.0,0.00021917,4]
[365812076,1749931839013,-460.0,0.00021917,4]
[365812077,1749931839023,-460.0,0.00021917,4]
[365812078,1749931839037,-380.0,0.00021917,4]
[365812079,1749931839047,-400.0,0.00021917,4]
[365812080,1749931839057,-460.0,0.00021917,4]
[365812081,1749931839067,-460.0,0.00021917,4]
[365812082,1749931839081,-460.0,0.00021917,4]
[365812083,1749931839094,-460.0,0.00021917,4]
[365812084,1749931839103,-460.0,0.00021917,4]
[365812085,1749931839113,-460.0,0.00021917,4]
[365812086,1749931839122,-401.18964997,0.00021917,4]
[365812087,1749931839132,-460.0,0.00021917,4]
[365812088,1749931839141,-460.0,0.00021917,4]
[365812089,1749931839151,-460.0,0.00021917,4]
[365812090,1749931839161,-460.0,0.00021917,4]
[365812091,1749931839170,-547.80321957,0.00021917,4]
[365812092,1749931839179,-460.0,0.00021917,4]
[365812093,1749931839189,-460.0,0.00021917,4]
[365812094,1749931839198,-410.0,0.00021917,4]
[365812095,1749931839207,-460.0,0.00021917,4]
[365812096,1749931839217,-460.0,0.00021917,4]
[365812097,1749931839227,-200.20184727,0.00021917,4]
[365812098,1749931839236,-460.0,0.00021917,4]
[365812099,1749931839245,-440.0,0.00021917,4]
[365812100,1749931839255,-254.11833438,0.00021917,4]
[365812101,1749931839265,-460.0,0.00021917,4]
[365812102,1749931839274,-460.0,0.00021917,4]
[365812103,1749931839284,-420.0,0.00021917,4]
[365812104,1749931839293,-440.0,0.00021917,4]
[365812105,1749931839303,-460.0,0.00021917,4]
[365812106,1749931839313,-440.0,0.00021917,4]
[365812107,1749931839322,-460.0,0.00021917,4]
[365812108,1749931839332,-460.0,0.00021917,4]
[365812109,1749931839341,-460.0,0.00021917,4]
[365812110,1749931839351,-460.0,0.00021917,4]
[365812111,1749931839360,-430.0,0.00021917,4]
[365812112,1749931839373,-420.0,0.00021917,4]
[365812113,1749931839382,-460.0,0.00021917,4]
[365812114,1749931839392,-460.0,0.00021917,4]
[365812115,1749931839401,-440.0,0.00021917,4]
[365812116,1749931839412,-460.0,0.00021917,4]
[365812117,1749931839422,-401.98555472,0.00021917,4]
[365812118,1749931839431,-460.0,0.00021917,4]
[365812119,1749931839441,-460.0,0.00021917,4]
[365812120,1749931839451,-460.0,0.00021917,4]
[365812121,1749931839460,-495.98,0.00021917,4]
[365812122,1749931839469,-325.127361,0.00021917,4]
[365812123,1749931839478,-407.3406,0.00021917,4]
[365812124,1749931839487,-440.0,0.00021917,4]
[365812125,1749931839497,-440.0,0.00021917,4]
[365812126,1749931839506,-297.89612576,0.00021917,4]
[365812127,1749931839516,-592.05002716,0.00021917,4]
[365812128,1749931839526,-440.0,0.00021917,4]
[365812129,1749931839536,-1616.89,0.00021917,4]
[365812130,1749931839545,-460.0,0.00021917,4]
[365812131,1749931839555,-403.62305558,0.00021917,4]
[365812132,1749931839565,-440.0,0.00021917,4]
[365812133,1749931839576,-460.0,0.00021917,4]
[365812134,1749931839585,-440.0,0.00021917,4]
[365812135,1749931839595,-460.0,0.00021917,4]
[365812136,1749931839604,-460.0,0.00021917,4]
[365812137,1749931839613,-464.55,0.00021917,4]
[365812138,1749931839621,-460.0,0.00021917,4]
[365812139,1749931839630,-460.0,0.00021917,4]
[365812140,1749931839640,-460.0,0.00021917,4]
[365812141,1749931839649,-420.0,0.00021917,4]
[365812142,1749931839658,-420.0,0.00021917,4]
[365812143,1749931839667,-440.0,0.00021917,4]
[365812144,1749931839676,-460.0,0.00021917,4]
[365812145,1749931839685,-460.0,0.00021917,4]
[365812146,1749931839694,-460.0,0.00021917,4]
[365812147,1749931839703,-460.0,0.00021917,4]
[365812148,1749931839712,-460.0,0.00021917,4]
[365812149,1749931839721,-420.0,0.00021917,4]
[365812150,1749931839730,-215.42,0.00021917,4]
[365812151,1749931839740,-460.0,0.00021917,4]
[365812152,1749931839749,-460.0,0.00021917,4]
[365812153,1749931839759,-460.0,0.00021917,4]
[365812154,1749931839768,-460.0,0.00021917,4]
[365812155,1749931839778,-420.0,0.00021917,4]
[365812156,1749931839788,-460.0,0.00021917,4]
[365812158,1749931839798,-460.0,0.00021917,4]
[365812160,1749931839807,-460.0,0.00021917,4]
[365812161,1749931839817,-255.01132169,0.00021917,4]
[365812163,1749931839826,-500.0,0.00021917,4]
[365812165,1749931839835,-460.0,0.00021917,4]